bitfinex-derivatives/quotes_SOLF0:USTF0_20250127
["timestamp","ask_amount","ask_price","bid_price","bid_amount"]
[1737963301636,0.03394842,224.59,224.55,37.83323497]
[1737963301845,37.80351829,224.92,224.55,37.80351829]
[1737963302034,2.6842,224.9,224.7,37.80351829]
[1737963302341,3.51645834,224.85,224.78,4.452]
[1737963302537,3.51645834,224.85,224.64,37.80351829]
[1737963302837,3.51645834,224.89,224.64,37.80351829]
[1737963303136,0.03203351,224.77,224.72,0.03414437]
[1737963303538,3.51645834,224.89,224.73,37.80351829]
[1737963303742,0.02886514,224.77,224.73,37.80351829]
[1737963304240,37.80351829,224.88,224.69,2.7886]
[1737963304443,0.03058354,224.77,224.73,0.03120452]
[1737963304632,0.03058354,224.77,224.73,37.83472281]
[1737963304838,2.6842,224.9,224.73,37.80351829]
[1737963305034,37.80351829,224.96,224.73,37.80351829]
[1737963305239,3.5197565,224.89,224.73,37.83176713]
[1737963305440,3.5197565,224.89,224.73,37.80351829]
[1737963305632,3.5197565,224.9,224.69,40.59211829]
[1737963305838,37.80351829,224.88,224.69,40.59211829]
[1737963306137,37.80351829,224.84,224.61,37.80351829]
[1737963306531,4.4523,224.77,224.76,4.76e-06]
[1737963306734,3.5197565,224.83,224.61,37.80351829]
[1737963306941,37.80351829,224.8,224.58,5.6324]
[1737963307130,37.80351829,224.72,224.57,2.7297]
[1737963307336,37.80351829,224.68,224.45,37.80351829]
[1737963307643,37.80351829,224.72,224.53,37.80351829]
[1737963307940,0.03073635,224.59,224.54,0.02967506]
[1737963308135,5.3404,224.79,224.57,37.80351829]
[1737963308343,3.52811361,224.78,224.57,37.80351829]
[1737963308641,3.52811361,224.78,224.65,37.80351829]
[1737963308941,3.52811361,224.86,224.69,37.80351829]
[1737963309240,3.52811361,224.86,224.67,8.1371]
[1737963309744,0.03008377,224.79,224.67,5.4865]
[1737963310037,37.80351829,224.76,224.53,2.8914]
[1737963310241,37.80351829,224.72,224.53,2.8914]
[1737963310636,4.4551,224.63,224.54,2.8775]
[1737963310843,3.52811361,224.71,224.54,2.8775]
[1737963311340,6.067e-05,224.65,224.6,37.83550486]
[1737963311536,2.6395,224.9,224.64,37.80351829]
[1737963311735,37.80351829,224.8,224.61,5.7851]
[1737963312538,37.80351829,224.84,224.61,5.7851]
[1737963312744,0.02917519,224.73,224.68,0.02964093]
[1737963313240,4.452,224.79,224.71,4.4534]
[1737963313539,0.03078911,224.73,224.68,0.02910915]
[1737963313746,4.4545,224.66,224.61,5.7851]
[1737963313940,37.80351829,224.81,224.61,5.7851]
[1737963314144,0.02835172,224.66,224.61,9.438e-05]
[1737963314344,4.4552,224.63,224.61,9.438e-05]
[1737963314547,37.80351829,224.72,224.48,37.80351829]
[1737963314746,37.80351829,224.76,224.53,37.80351829]
[1737963315245,37.80351829,224.76,224.54,2.7948]
[1737963315449,0.03046861,224.67,224.62,0.02925554]
[1737963315948,0.03046861,224.67,224.54,2.7948]
[1737963316144,0.03046861,224.67,224.62,7.013e-05]
[1737963316842,0.03046861,224.67,224.64,4.4548]
[1737963317039,0.03046861,224.67,224.62,7.013e-05]
[1737963317558,483.0,224.92,224.64,37.80351829]
[1737963317748,292.0,224.98,224.65,2.7946]
[1737963317944,8.1114,224.93,224.65,2.7946]
[1737963318653,4.4522,224.78,224.65,2.7946]
[1737963318851,0.02831266,224.79,224.74,0.0337295]
[1737963319054,0.02831266,224.79,224.77,4.4521]
[1737963319250,37.80351829,224.92,224.73,37.80351829]
[1737963319547,0.03349193,224.8,224.76,0.02804235]
[1737963319944,37.80351829,224.88,224.65,40.59811829]
[1737963320144,0.03087026,224.8,224.77,4.4522]
[1737963320545,8.1114,224.93,224.73,37.80351829]
[1737963320847,0.02880823,224.81,224.76,0.02951749]
[1737963321054,0.02880823,224.81,224.73,37.80351829]
[1737963321246,4.4501,224.88,224.77,4.4522]
[1737963321553,37.80351829,224.96,224.73,37.80351829]
[1737963321748,37.80351829,225.0,224.77,37.80351829]
[1737963321953,4.449,224.94,224.86,4.4503]
[1737963322252,2.6734,225.03,224.81,37.80351829]
[1737963322453,4.4478,225.0,224.81,37.80351829]
[1737963322752,0.03363863,224.94,224.9,0.02985515]
[1737963322947,0.03363863,224.94,224.91,4.4495]
[1737963323146,37.80351829,225.0,224.82,2.6759]
[1737963323548,4.4496,224.91,224.9,0.03081433]
[1737963323746,0.02806062,224.95,224.9,0.03081433]
[1737963327060,37.80351829,225.17,224.93,37.80351829]
[1737963327356,2.7482,225.2,224.94,2.8591]
[1737963327556,2.7482,225.2,225.01,37.80351829]
[1737963328151,0.02874177,225.13,225.08,0.03289758]
[1737963328660,37.83226006,225.13,224.93,37.80351829]
[1737963328858,37.80351829,225.05,224.85,37.80351829]
[1737963329051,37.80351829,225.05,224.83,2.6875]
[1737963329255,37.80351829,225.09,224.85,37.80351829]
[1737963329456,37.80351829,225.13,224.89,37.80351829]
[1737963329661,4.4468,225.05,224.89,37.80351829]
[1737963329975,0.03332953,225.03,224.99,0.0327882]
[1737963330164,4.4497,224.9,224.83,2.6875]
[1737963330364,37.80351829,225.01,224.83,2.6875]
[1737963330668,37.80351829,225.05,224.83,2.6875]
[1737963330862,37.80351829,225.05,224.85,37.80351829]
[1737963331367,0.02989614,224.97,224.93,0.03205452]
[1737963331763,0.02989614,224.97,224.93,5.452e-05]
[1737963331966,4.4488,224.95,224.93,5.452e-05]
[1737963332366,0.02989614,224.97,224.93,5.452e-05]
[1737963333068,4.47829614,224.97,224.93,5.452e-05]
[1737963333266,0.02989614,224.97,224.93,5.452e-05]
[1737963334667,4.4489,224.95,224.93,5.452e-05]
[1737963335266,37.80351829,225.19,224.94,37.80351829]
[1737963335462,0.21258,225.25,225.06,37.80351829]
[1737963335764,0.21258,225.25,225.1,37.80351829]
[1737963336069,0.21258,225.25,225.14,37.80351829]
[1737963336267,4.4434,225.22,225.14,37.80351829]
[1737963336467,0.21258,225.25,225.14,37.80351829]
[1737963336770,0.03149057,225.22,225.17,0.03205988]
[1737963338269,4.4441,225.19,225.17,5.988e-05]
[1737963338968,0.03149057,225.22,225.17,5.988e-05]
[1737963339375,4.4442,225.19,225.17,5.988e-05]
[1737963339771,0.03149057,225.22,225.17,5.988e-05]
[1737963340677,4.4441,225.19,225.17,5.988e-05]
[1737963341071,0.03149057,225.22,225.17,5.988e-05]
[1737963341277,4.4437,225.21,225.17,5.988e-05]
[1737963341578,0.03149057,225.22,225.17,5.988e-05]
[1737963341876,4.444,225.19,225.17,5.988e-05]
[1737963342471,0.03149057,225.22,225.17,5.988e-05]
[1737963345580,0.03149057,225.22,225.18,37.80351829]
[1737963345781,0.03149057,225.22,225.2,4.4436]
[1737963345978,0.22425,225.34,225.18,37.80351829]
[1737963346179,0.22425,225.34,225.17,5.988e-05]
[1737963346481,0.22425,225.34,225.15,2.8951]
[1737963346980,4.4419,225.3,225.22,4.4432]
[1737963347182,0.03085435,225.27,225.22,0.02859438]
[1737963347481,0.03085435,225.27,225.25,4.4427]
[1737963347980,0.03085435,225.27,225.22,37.83211267]
[1737963348182,0.03085435,225.27,225.22,0.02859438]
[1737963349080,0.22425,225.34,225.22,0.02859438]
[1737963349281,37.80351829,225.44,225.22,0.02859438]
[1737963349282,37.80351829,225.52,225.31,37.80351829]
[1737963350289,37.80351829,225.48,225.26,37.80351829]
[1737963350482,37.83628598,225.44,225.23,2.7525]
[1737963350782,37.80351829,225.44,225.23,2.7525]
[1737963350982,2.7735,225.43,225.23,2.7525]
[1737963351185,37.80351829,225.4,225.18,37.80351829]
[1737963351382,37.80351829,225.36,225.14,37.80351829]
[1737963351575,4.4419,225.3,225.18,4.4441]
[1737963351781,0.02831611,225.31,225.22,37.80351829]
[1737963351979,37.80351829,225.72,225.14,37.80351829]
[1737963351980,37.80351829,225.52,225.3,37.80351829]
[1737963352186,0.81595173,225.51,225.27,5.3247]
[1737963352686,0.81595173,225.51,225.33,37.80351829]
[1737963352890,0.81595173,225.53,225.33,37.80351829]
[1737963353185,0.03135782,225.44,225.41,4.4396]
[1737963353486,40.60541829,225.56,225.33,37.80351829]
[1737963353681,0.03130087,225.45,225.4,0.02880265]
[1737963354182,0.02902579,225.45,225.4,0.02891454]
[1737963354381,0.02902579,225.45,225.43,4.4392]
[1737963354784,0.02902579,225.45,225.4,0.02891454]
[1737963355081,292.0,225.93,225.44,37.80351829]
[1737963355284,45.83621829,225.88,225.66,37.80351829]
[1737963355491,3.58443028,225.87,225.7,37.80351829]
[1737963355785,2.7696,225.87,225.7,37.80351829]
[1737963355985,2.7696,225.87,225.59,8.194]
[1737963355986,2.7696,225.87,225.66,37.80351829]
[1737963356285,0.03325266,225.79,225.66,37.80351829]
[1737963356493,0.03325266,225.79,225.74,0.03286405]
[1737963356683,0.03325266,225.79,225.74,37.83638234]
[1737963356886,37.80351829,225.99,225.78,37.80351829]
[1737963357086,3.58418149,225.98,225.78,37.80351829]
[1737963357287,2.7696,225.98,225.74,37.80351829]
[1737963357693,4.4309,225.86,225.74,37.80351829]
[1737963357887,2.7696,225.98,225.74,37.80351829]
[1737963358088,2.7696,225.98,225.79,37.80351829]
[1737963358385,37.80351829,226.03,225.83,37.80351829]
[1737963358686,4.4309,225.86,225.75,8.2589]
[1737963358892,37.80351829,225.99,225.75,8.2589]
[1737963359189,37.80351829,225.99,225.79,37.80351829]
[1737963359391,4.4307,225.87,225.85,0.03323102]
[1737963359590,0.02924981,225.89,225.7,37.80351829]
[1737963359791,37.80351829,225.94,225.7,37.80351829]
[1737963360494,37.80351829,225.94,225.66,37.80351829]
[1737963360792,37.80351829,225.83,225.62,37.80351829]
[1737963360988,0.03095269,225.84,225.67,37.80351829]
[1737963361194,37.80351829,225.9,225.67,37.80351829]
[1737963361492,4.4311,225.85,225.71,37.80351829]
[1737963361691,37.80351829,225.98,225.75,37.80351829]
[1737963361993,37.80351829,225.94,225.75,37.80351829]
[1737963362195,37.80351829,225.86,225.62,37.80351829]
[1737963362393,37.80351829,225.86,225.63,2.7463]
[1737963363195,37.80351829,225.9,225.63,2.7463]
[1737963363398,37.80351829,225.94,225.7,37.80351829]
[1737963363593,0.02916085,225.79,225.74,0.03201175]
[1737963363796,37.80351829,225.94,225.74,37.80351829]
[1737963364188,0.02806571,225.79,225.74,37.80351829]
[1737963364391,37.80351829,225.94,225.74,37.80351829]
[1737963364691,38.68839573,226.02,225.82,37.80351829]
[1737963364893,4.4297,225.92,225.82,42.23501829]
[1737963365092,4.4297,225.92,225.83,2.748]
[1737963365295,38.68839573,226.02,225.83,2.748]
[1737963365688,0.81407087,226.01,225.83,2.748]
[1737963365893,4.4297,225.92,225.9,0.03223767]
[1737963366094,4.4297,225.92,225.9,3.767e-05]
[1737963367406,37.80351829,225.91,225.7,37.80351829]
[1737963367699,37.80351829,226.01,225.83,37.80351829]
[1737963367901,0.88487744,226.02,225.83,37.80351829]
[1737963368096,4.4291,225.95,225.84,7.2229]
[1737963368296,4.4291,225.95,225.84,11.3549]
[1737963368801,2.6478,226.07,225.87,0.03348586]
[1737963368802,0.03049108,225.92,225.87,0.03348586]
[1737963368997,0.03049108,225.92,225.88,37.80351829]
[1737963369297,37.80351829,226.12,225.88,37.80351829]
[1737963369596,37.80351829,226.16,225.95,37.80351829]
[1737963369794,0.81354588,226.15,225.95,37.80351829]
[1737963369994,37.80351829,226.2,225.99,37.80351829]
[1737963370193,4.4247,226.18,226.08,4.4263]
[1737963370390,0.0324636,226.12,226.07,0.03291016]
[1737963370794,37.80351829,226.24,226.0,8.4405]
[1737963370999,37.80351829,226.2,226.0,8.4405]
[1737963371197,0.03280377,226.12,226.08,37.80351829]
[1737963371392,4.424,226.21,226.11,4.4258]
[1737963371598,8.3597,226.3,226.04,37.80351829]
[1737963371901,4.4238,226.22,226.11,4.4258]
[1737963372097,37.80351829,226.29,226.11,4.4258]
[1737963372297,37.80351829,226.29,226.08,37.80351829]
[1737963372492,37.80351829,226.25,226.18,0.03206348]
[1737963372800,37.80351829,226.25,226.04,37.80351829]
[1737963372801,37.80351829,226.21,226.0,46.24401829]
[1737963373099,4.4258,226.12,226.0,46.24401829]
[1737963373299,37.80351829,226.21,226.0,46.24401829]
[1737963373501,42.22761829,226.21,226.02,4.4276]
[1737963373696,37.80351829,226.17,226.0,8.4405]
[1737963373892,0.02891621,226.13,226.08,8.232e-05]
[1737963374093,4.4292,225.95,225.87,2.8771]
[1737963374297,37.80351829,226.03,225.87,2.8771]
[1737963374498,37.80351829,226.07,225.87,2.8771]
[1737963374697,37.80351829,226.03,225.87,2.8771]
[1737963374995,10.8817,226.16,225.95,37.80351829]
[1737963375198,10.8817,226.16,225.96,2.7292]
[1737963375395,37.80351829,226.17,225.96,2.7292]
[1737963375599,37.80351829,226.44,225.99,37.80351829]
[1737963375600,37.80351829,226.21,225.99,37.80351829]
[1737963375802,37.80351829,226.17,225.96,2.7292]
[1737963376703,0.03073283,226.09,226.04,0.02808076]
[1737963378600,37.83425112,226.09,226.04,8.076e-05]
[1737963379197,0.03073283,226.09,226.04,8.076e-05]
[1737963381704,42.23041829,226.06,226.04,8.076e-05]
[1737963382197,4.4269,226.06,226.04,8.076e-05]
[1737963382697,42.23041829,226.06,226.04,8.076e-05]
[1737963382898,42.23041829,226.06,225.89,2.8826]
[1737963382899,37.80351829,226.06,225.89,2.8826]
[1737963383099,40.46981829,226.08,225.89,2.8826]
[1737963383899,40.46981829,226.08,225.84,4.4311]
[1737963384099,40.46981829,226.08,225.8,37.80351829]
[1737963384100,0.02883736,226.01,225.96,7.776e-05]
[1737963384301,292.81297202,226.06,225.73,8.0964]
[1737963384498,37.80351829,225.91,225.73,12.5296]
[1737963384701,292.81297202,226.05,225.73,12.5296]
[1737963384702,37.80351829,225.87,225.73,4.4332]
[1737963384897,315.5918,226.04,225.57,37.80351829]
[1737963385097,8.5562,225.86,225.53,2.8762]
[1737963385302,37.80351829,225.74,225.53,2.8762]
[1737963385504,4.4343,225.69,225.67,0.03341011]
[1737963385800,37.80351829,225.79,225.6,37.80351829]
[1737963386103,0.03243874,225.7,225.66,4.46674173]
[1737963386305,0.03243874,225.7,225.66,0.03224173]
[1737963386701,37.83595703,225.7,225.66,0.03224173]
[1737963386904,37.83595703,225.7,225.53,2.8762]
[1737963387098,37.80351829,225.66,225.49,8.3845]
[1737963387601,37.80351829,225.62,225.4,2.6382]
[1737963387804,4.4367,225.56,225.42,4.4393]
[1737963388005,37.80351829,225.58,225.4,2.6382]
[1737963388207,37.80351829,225.5,225.39,181.94676787]
[1737963388408,4.439,225.45,225.39,181.94676787]
[1737963388706,37.80351829,225.42,225.39,181.94676787]
[1737963388903,37.80351829,225.42,225.4,0.02940223]
[1737963389104,37.80351829,225.42,225.39,174.8755701]
[1737963389305,0.03265768,225.44,225.23,48.46811829]
[1737963389506,0.03265768,225.44,225.23,10.6646]
[1737963389806,37.80351829,225.46,225.27,37.80351829]
[1737963390106,37.80351829,225.5,225.27,37.80351829]
[1737963390304,0.03328637,225.39,225.34,0.03216211]
[1737963390701,37.80351829,225.54,225.37,4.4404]
[1737963390899,297.3181,225.69,225.35,37.80351829]
[1737963391106,2.7159,225.66,225.35,37.80351829]
[1737963391610,2.7159,225.66,225.31,37.80351829]
[1737963391812,37.80351829,225.51,225.27,37.80351829]
[1737963392009,37.83693952,225.47,225.27,37.80351829]
[1737963392205,0.03342123,225.47,225.27,37.80351829]
[1737963392510,37.80351829,225.51,225.31,37.80351829]
[1737963392707,292.0,225.65,225.31,37.80351829]
[1737963392908,292.0,225.65,225.35,37.80351829]
[1737963393108,2.7159,225.66,225.35,37.80351829]
[1737963393508,0.0328299,225.49,225.44,0.0325649]
[1737963394014,0.0328299,225.49,225.35,37.80351829]
[1737963394202,0.0328299,225.49,225.44,0.02800145]
[1737963394406,37.80351829,225.58,225.44,0.02800145]
[1737963394604,4.4386,225.47,225.44,0.02800145]
[1737963394811,0.03069992,225.49,225.27,37.80351829]
[1737963395214,4.4384,225.48,225.43,0.03400567]
[1737963395415,37.80351829,225.5,225.43,0.03400567]
[1737963395711,0.03313358,225.4,225.35,37.80351829]
[1737963395908,0.03313358,225.4,225.39,4.44]
[1737963396110,37.80351829,225.58,225.44,0.02981782]
[1737963396612,37.80351829,225.58,225.35,37.80351829]
[1737963396807,37.80351829,225.5,225.27,37.80351829]
[1737963397513,0.02909847,225.41,225.36,0.02879007]
[1737963397910,0.02909847,225.41,225.23,10.6646]
[1737963398214,0.02909847,225.41,225.0,46.69871829]
[1737963398215,4.4411,225.34,225.24,4.4429]
[1737963398414,2.8209,225.45,225.22,37.80351829]
[1737963398714,4.4412,225.34,225.25,4.4427]
[1737963398916,37.80351829,225.4,225.22,37.80351829]
[1737963399212,0.03223208,225.32,225.27,0.03241306]
[1737963399414,0.03223208,225.32,225.28,4.4421]
[1737963399615,2.8209,225.45,225.22,37.80351829]
[1737963399809,37.80351829,225.5,225.3,37.80351829]
[1737963400009,2.84,225.52,225.3,37.80351829]
[1737963400206,0.02839983,225.42,225.3,37.80351829]
[1737963400406,0.02839983,225.42,225.26,37.80351829]
[1737963400612,0.02839983,225.42,225.19,10.8516]
[1737963400613,37.80351829,225.41,225.22,37.80351829]
[1737963400812,37.80351829,225.41,225.19,10.8516]
[1737963401413,4.4403,225.38,225.3,4.4418]
[1737963401814,37.80351829,225.45,225.22,37.80351829]
[1737963402015,0.03309269,225.36,225.32,0.03135097]
[1737963402516,4.4411,225.34,225.32,0.03135097]
[1737963402716,0.03078522,225.36,225.32,0.03135097]
[1737963405716,4.4411,225.34,225.32,0.03135097]
[1737963406015,0.03078522,225.36,225.32,0.03135097]
[1737963408420,4.4411,225.34,225.32,0.03135097]
[1737963409215,4.4411,225.34,225.32,5.097e-05]
[1737963410726,0.03078522,225.36,225.32,5.097e-05]
[1737963412621,4.4409,225.35,225.32,5.097e-05]
[1737963413025,4.441,225.34,225.32,5.097e-05]
[1737963413225,37.80351829,225.33,225.32,5.097e-05]
[1737963413721,4.441,225.34,225.32,5.097e-05]
[1737963413931,0.03078522,225.36,225.32,5.097e-05]
[1737963414129,0.03078522,225.36,225.35,4.4408]
[1737963414929,0.03078522,225.36,225.32,5.097e-05]
[1737963415531,4.4412,225.33,225.32,5.097e-05]
[1737963415833,0.03078522,225.36,225.32,5.097e-05]
[1737963417822,4.4412,225.33,225.32,5.097e-05]
[1737963418027,0.03078522,225.36,225.32,5.097e-05]
[1737963418531,4.4412,225.33,225.32,5.097e-05]
[1737963418934,37.80351829,225.34,225.09,37.80351829]
[1737963419131,37.80351829,225.3,225.05,37.80351829]
[1737963419432,37.80351829,225.3,225.05,40.43551829]
[1737963420237,0.02927352,225.2,225.15,0.02929598]
[1737963420724,0.88758709,225.33,225.13,178.96384722]
[1737963420923,0.88758709,225.33,225.17,37.80351829]
[1737963421135,0.88758709,225.33,225.26,4.4425]
[1737963421934,37.80351829,225.4,225.19,2.632]
[1737963422231,0.03378831,225.32,225.27,0.02940109]
[1737963422430,4.4422,225.29,225.27,0.02940109]
[1737963422633,37.8373066,225.32,225.18,8.0767]
[1737963422826,4.4424,225.27,225.18,12.5207]
[1737963423027,37.80351829,225.28,225.1,2.6724]
[1737963423332,37.80351829,225.32,225.11,2.7771]
[1737963423828,0.02860435,225.24,225.19,0.02924077]
[1737963424933,4.4437,225.21,225.19,0.02924077]
[1737963425131,4.4437,225.21,225.19,4.077e-05]
[1737963426531,0.02860435,225.24,225.19,4.077e-05]
[1737963427835,4.4436,225.21,225.19,4.077e-05]
[1737963428636,0.02860435,225.24,225.19,4.077e-05]
[1737963429233,4.4436,225.21,225.19,4.077e-05]
[1737963432938,37.80351829,225.2,225.19,4.077e-05]
[1737963433137,37.80351829,225.16,225.03,178.96384722]
[1737963433338,37.80351829,225.12,225.03,178.96384722]
[1737963433937,37.80351829,225.2,225.03,178.96384722]
[1737963434237,4.4443,225.18,225.04,2.7494]
[1737963434436,0.03325742,225.1,225.05,0.02892019]
[1737963434733,0.03325742,225.1,225.09,4.446]
[1737963434931,4.4435,225.22,225.05,0.02892019]
[1737963435136,37.80351829,225.24,225.05,2.65132019]
[1737963435431,37.80351829,225.24,225.05,2.6224]
[1737963436336,0.03213089,225.17,225.12,0.03332793]
[1737963436739,37.80351829,225.32,225.12,0.03332793]
[1737963437138,37.80351829,225.23,225.05,2.6224]
[1737963437633,37.80351829,225.27,225.06,37.80351829]
[1737963437836,38.69118417,225.31,225.11,37.80351829]
[1737963438042,0.03159658,225.16,225.12,0.02858401]
[1737963438536,4.4447,225.16,225.05,2.6224]
[1737963438732,0.03073289,225.16,225.12,0.03409796]
[1737963439335,41.31192357,225.3,225.12,0.03409796]
[1737963439537,38.69122357,225.3,225.12,0.03409796]
[1737963439740,0.88770528,225.3,225.2,37.80351829]
[1737963440240,42.59056889,225.44,225.21,5.3155]
[1737963440640,3.272e-05,225.27,225.23,0.02821441]
[1737963440840,37.80351829,225.41,225.21,5.3155]
[1737963441143,37.80351829,225.37,225.21,5.3155]
[1737963441341,37.80351829,225.33,225.21,5.3155]
[1737963441739,37.80351829,225.37,225.21,5.3155]
[1737963441931,0.02846834,225.29,225.25,0.02942099]
[1737963442438,37.80351829,225.41,225.25,0.02942099]
[1737963442936,37.80351829,225.41,225.21,5.3155]
[1737963443137,37.80351829,225.37,225.21,5.3155]
[1737963443339,37.80351829,225.33,225.21,5.3155]
[1737963443739,0.03377831,225.29,225.25,0.03035122]
[1737963443943,4.4426,225.26,225.25,5.122e-05]
[1737963444342,0.03377831,225.29,225.25,5.122e-05]
[1737963445647,42.59056889,225.44,225.25,5.122e-05]
[1737963446048,37.80351829,225.4,225.2,37.80351829]
[1737963446244,4.4421,225.29,225.17,5.526]
[1737963446446,37.80351829,225.36,225.21,4.4435]
[1737963446744,37.80351829,225.36,225.17,5.526]
[1737963446745,4.442,225.3,225.17,5.526]
[1737963446945,0.02843724,225.31,225.26,0.03097636]
[1737963447142,0.02843724,225.31,225.2,37.80351829]
[1737963447351,4.4408,225.35,225.2,37.80351829]
[1737963447546,0.02836881,225.31,225.26,0.03148912]
[1737963448046,0.02836881,225.31,225.29,4.442]
[1737963448643,42.59056889,225.44,225.26,0.03106152]
[1737963448950,0.0335868,225.32,225.26,0.03106152]
[1737963449150,37.80351829,225.44,225.29,4.4419]
[1737963449347,37.80351829,225.44,225.33,0.03186267]
[1737963449853,0.03315396,225.36,225.24,37.80351829]
[1737963450150,37.80351829,225.48,225.38,4.4401]
[1737963450346,5.484e-05,225.32,225.28,37.80351829]
[1737963450546,5.484e-05,225.32,225.29,2.8275]
[1737963450746,37.80351829,225.48,225.41,3.564e-05]
[1737963450949,37.80351829,225.43,225.29,2.8275]
[1737963451650,37.80351829,225.43,225.3,2.817]
[1737963451950,0.03153872,225.38,225.34,0.03320693]
[1737963452151,4.4407,225.36,225.34,6.93e-06]
[1737963452651,0.03153872,225.38,225.34,6.93e-06]
[1737963453549,37.80351829,225.51,225.34,6.93e-06]
[1737963453949,37.80351829,225.47,225.29,37.80351829]
[1737963454147,37.80351829,225.51,225.29,37.80351829]
[1737963454457,4.4387,225.46,225.39,4.4399]
[1737963454657,37.80351829,225.55,225.33,37.80351829]
[1737963454949,37.80351829,225.63,225.41,37.80351829]
[1737963456157,37.80351829,225.67,225.56,4.4365]
[1737963456457,50.80131667,225.7,225.5,0.03039921]
[1737963456458,48.07611667,225.7,225.5,0.03039921]
[1737963456653,0.03238242,225.64,225.62,4.4354]
[1737963456957,37.80351829,225.79,225.58,0.03377583]
[1737963457255,37.80351829,225.79,225.67,4.4345]
[1737963457448,37.80351829,225.79,225.57,37.80351829]
[1737963457652,2.8813,225.83,225.65,37.80351829]
[1737963457944,2.8813,225.83,225.66,8.3628]
[1737963458150,0.02989072,225.76,225.72,0.02911492]
[1737963458548,85.87963496,225.88,225.72,0.02911492]
[1737963458855,48.07611667,225.88,225.83,4.4312]
[1737963459253,4.77772826,225.93,225.83,4.4312]
[1737963459452,37.80351829,226.0,225.81,37.80351829]
[1737963459656,37.80351829,226.04,225.82,5.4691]
[1737963459853,37.80351829,226.08,225.85,37.80351829]
[1737963460055,4.023e-05,225.93,225.92,4.4296]
[1737963460558,4.4258,226.12,225.89,37.80351829]
[1737963460757,48.07611667,226.15,225.94,37.80351829]
[1737963461457,0.03007382,226.07,226.02,0.03363283]
[1737963461856,5.6711,226.23,225.84,37.80351829]
[1737963461857,37.80351829,226.2,225.98,37.80351829]
[1737963462157,0.03060418,226.07,226.02,0.02803249]
[1737963462659,37.80351829,226.2,225.99,5.7135]
[1737963462862,0.02839098,226.07,226.02,0.03148283]
[1737963463255,4.4272,226.05,225.93,4.4294]
[1737963463553,37.80351829,226.04,225.91,2.7615]
[1737963463963,4.4288,225.97,225.91,2.7615]
[1737963464158,37.80351829,226.08,225.91,2.7615]
[1737963464354,292.0,226.4,226.06,37.80351829]
[1737963464554,4.4225,226.29,226.15,37.80351829]
[1737963464858,8.6411,226.45,226.16,2.8332]
[1737963464859,37.80351829,226.32,226.16,2.8332]
[1737963465163,37.80351829,226.36,226.17,0.03397035]
[1737963465459,37.80351829,226.32,226.16,2.8332]
[1737963465661,4.4227,226.28,226.17,4.4246]
[1737963465856,37.80351829,226.36,226.16,2.8332]
[1737963466058,37.80351829,226.4,226.19,37.80351829]
[1737963466254,37.80351829,226.45,226.19,37.80351829]
[1737963466453,0.02833472,226.32,226.27,0.0289936]
[1737963466753,0.02833472,226.32,226.27,4.4517936]
[1737963466954,37.80351829,226.49,226.24,37.80351829]
[1737963467158,0.81234602,226.48,226.24,37.80351829]
[1737963467358,0.03396346,226.32,226.27,0.02786184]
[1737963467864,37.80351829,226.45,226.2,37.80351829]
[1737963468058,0.03322039,226.32,226.27,0.03186042]
[1737963468459,37.80351829,226.41,226.16,2.8332]
[1737963468460,37.80351829,226.41,226.19,37.80351829]
[1737963468861,0.02940913,226.32,226.27,0.02841558]
[1737963469054,4.4221,226.31,226.27,0.02841558]
[1737963469257,4.4221,226.31,226.19,37.80351829]
[1737963469456,0.02940913,226.32,226.19,37.80351829]
[1737963469768,37.80351829,226.41,226.23,0.03142719]
[1737963470070,0.02965307,226.28,226.23,0.03142719]
[1737963470267,0.02965307,226.28,226.19,37.80351829]
[1737963470465,37.80351829,226.45,226.23,37.80351829]
[1737963470664,0.81250137,226.44,226.23,37.83542704]
[1737963471165,0.81250137,226.44,226.23,37.80351829]
[1737963471366,37.80351829,226.5,226.27,37.80351829]
[1737963471563,0.81222315,226.49,226.31,37.80351829]
[1737963471760,4.4197,226.43,226.33,4.4215]
[1737963472066,37.80351829,226.5,226.31,37.80351829]
[1737963472364,4.4208,226.38,226.36,0.03363586]
[1737963472760,4.4202,226.4,226.31,4.4219]
[1737963472962,37.80351829,226.5,226.29,2.6849]
[1737963473265,0.03384912,226.39,226.31,0.02962274]
[1737963473462,0.03384912,226.39,226.2,37.80351829]
[1737963473774,37.80351829,226.42,226.21,2.7738]
[1737963473961,4.4214,226.34,226.33,9.47e-06]
[1737963474867,37.80351829,226.42,226.33,9.47e-06]
[1737963475363,0.03037883,226.36,226.33,9.47e-06]
[1737963475569,4.4213,226.35,226.33,9.47e-06]
[1737963476063,0.03037883,226.36,226.33,9.47e-06]
[1737963477063,4.4213,226.35,226.33,9.47e-06]
[1737963477264,0.03037883,226.36,226.33,9.47e-06]
[1737963477764,9.92188471,226.52,226.33,9.47e-06]
[1737963478167,9.92188471,226.52,226.34,4.4212]